bitfinex-derivatives/quotes_ETHF0:USTF0_20210407
["timestamp","ask_amount","ask_price","bid_price","bid_amount"]
[1617768638867,2.0,2102.7,2101.8,2.7171]
[1617768639268,2.0,2102.7,2101.9,5.86]
[1617768639770,2.0,2102.8,2101.9,5.86]
[1617768640474,55.8118,2102.7,2101.9,5.86]
[1617768640672,2.90695,2102.0,2101.9,5.86]
[1617768642572,2.90695,2102.0,2101.9,35.86]
[1617768642772,2.90695,2102.0,2101.9,38.76695]
[1617768644176,2.90695,2102.0,2101.9,109.15075]
[1617768644378,2.65095,2102.0,2101.9,109.15075]
[1617768649278,2.65095,2102.0,2101.9,111.62665]
[1617768650577,2.65095,2102.0,2101.9,109.15075]
[1617768651679,2.65095,2102.0,2101.9,111.11635]
[1617768659590,2.65095,2102.0,2101.9,109.15075]
[1617768661093,2.65095,2102.0,2101.9,111.19895]
[1617768662395,2.65095,2102.0,2101.9,81.19895]
[1617768662595,2.65095,2102.0,2101.9,79.15075]
[1617768664599,2.65095,2102.0,2101.9,81.41065]
[1617768667303,2.65095,2102.0,2101.9,79.15075]
[1617768669607,2.65095,2102.0,2101.9,76.2438]
[1617768670009,2.65095,2102.0,2101.9,5.86]
[1617768670607,2.65095,2102.0,2101.4,70.9878]
[1617768670608,2.65095,2102.0,2101.5,5.98]
[1617768671008,2.90695,2101.6,2101.5,5.98]
[1617768679214,2.90695,2101.6,2101.0,5.93]
[1617768679415,2.90695,2101.6,2101.2,0.23]
[1617768679616,2.90695,2101.6,2101.5,5.11]
[1617768679816,2.90695,2101.6,2101.1,5.77]
[1617768680016,2.90695,2101.6,2101.3,3.97]
[1617768680216,2.90695,2101.6,2101.5,5.2947]
[1617768680417,4.90695,2101.6,2101.2,4.67]
[1617768680816,4.90695,2101.6,2101.4,5.76]
[1617768681016,4.90695,2101.6,2101.3,4.46]
[1617768681416,4.90695,2101.6,2101.5,5.81]
[1617768681616,34.90695,2101.6,2101.4,0.63]
[1617768682017,34.90695,2101.6,2100.2,2.90695]
[1617768682218,66.412,2100.7,2100.2,2.90695]
[1617768682416,69.1877,2100.7,2100.2,2.90695]
[1617768682816,69.1877,2100.7,2100.3,5.78]
[1617768683019,2.90695,2100.4,2100.3,5.78]
[1617768684019,2.90695,2100.4,2099.8,5.79]
[1617768684419,2.90695,2100.4,2100.3,5.98]
[1617768684619,2.90695,2100.4,2099.2,32.0]
[1617768684820,2.90695,2100.4,2099.8,5.95]
[1617768685021,69.1877,2100.7,2100.3,5.88]
[1617768685221,69.1877,2100.7,2099.2,32.0]
[1617768685422,69.1877,2100.7,2100.0,5.71]
[1617768685623,69.1877,2100.7,2099.8,5.84]
[1617768685624,69.1877,2100.7,2100.4,5.85]
[1617768685822,69.1877,2100.7,2099.0,5.06165268]
[1617768686022,69.1877,2100.7,2100.1,5.88]
[1617768686224,69.1877,2100.7,2100.5,5.93]
[1617768686423,69.1877,2100.7,2098.8,5.06229795]
[1617768686624,4.7757,2100.7,2100.0,5.83]
[1617768686823,4.7757,2100.7,2100.6,5.44]
[1617768687023,7.68265,2100.7,2099.1,2.90695]
[1617768687224,7.68265,2100.7,2100.1,4.71]
[1617768687423,7.68265,2100.7,2099.1,2.90695]
[1617768687424,7.68265,2100.7,2099.9,5.82]
[1617768687624,7.68265,2100.7,2099.2,5.75]
[1617768687825,7.68265,2100.7,2100.2,5.93]
[1617768688025,7.68265,2100.7,2100.0,5.91]
[1617768688227,60.7302,2100.0,2099.2,5.72]
[1617768688424,60.7302,2100.0,2099.1,2.90695]
[1617768688624,60.7302,2100.0,2099.2,5.93]
[1617768689025,2.90695,2099.3,2099.2,5.93]
[1617768696730,5.41925,2099.3,2099.2,5.93]
[1617768698832,17.41925,2099.3,2099.2,5.93]
[1617768700233,17.41925,2099.3,2098.5,6.0]
[1617768700434,71.7149,2099.0,2098.4,30.0]
[1617768700831,71.7149,2099.0,2098.6,5.77]
[1617768701234,71.7149,2099.0,2098.7,2.90695]
[1617768701434,71.7149,2099.0,2098.7,5.88]
[1617768701832,71.7149,2099.0,2098.5,5.75]
[1617768702032,71.7149,2099.0,2098.8,5.93]
[1617768702232,14.5123,2099.3,2098.8,5.93]
[1617768702432,66.4072,2098.8,2098.5,5.76]
[1617768702632,68.4197,2098.8,2097.8,2.81]
[1617768703033,68.4197,2098.8,2098.5,5.79]
[1617768703233,2.90695,2098.6,2097.9,6.99695]
[1617768703434,2.90695,2098.6,2097.9,4.09]
[1617768703635,2.90695,2098.6,2097.5,30.0]
[1617768703836,2.90695,2098.6,2097.7,5.98]
[1617768704237,2.90695,2098.6,2097.5,30.0]
[1617768704435,2.90695,2098.6,2097.8,5.95]
[1617768704836,2.90695,2098.6,2097.6,5.75]
[1617768705035,2.90695,2098.6,2097.9,5.87]
[1617768705236,2.90695,2098.0,2097.9,5.87]
[1617768705437,2.90695,2098.0,2097.6,8.80695]
[1617768705636,2.90695,2098.0,2097.9,5.77]
[1617768706036,72.7754,2097.9,2097.6,2.90695]
[1617768706236,72.7754,2097.9,2097.7,5.83]
[1617768706436,72.7754,2097.9,2097.6,2.90695]
[1617768706837,72.7754,2097.9,2097.7,5.9]
[1617768707736,2.90695,2098.0,2097.8,30.0]
[1617768708136,64.6121,2099.1,2097.8,30.0]
[1617768708338,63.6548,2099.1,2097.9,5.75]
[1617768708536,63.6548,2099.1,2098.0,96.8332]
[1617768708744,63.6548,2099.1,2098.0,99.8059]
[1617768708939,63.6548,2099.1,2098.1,5.87]
[1617768710542,12.0,2099.3,2098.1,5.87]
[1617768710741,69.5855,2098.6,2098.1,5.87]
[1617768711340,69.5855,2098.6,2098.4,2.90695]
[1617768711743,69.5855,2098.6,2098.5,5.74]
[1617768713047,69.5855,2098.6,2097.8,5.96]
[1617768713245,71.9753,2098.6,2097.8,5.96]
[1617768713447,71.9753,2098.6,2098.5,5.55]
[1617768713646,71.9753,2098.6,2098.2,5.72]
[1617768713847,2.3898,2098.6,2098.2,5.72]
[1617768714046,2.3898,2098.6,2098.5,5.79]
[1617768714248,2.3898,2098.6,2098.2,5.81]
[1617768714446,68.8397,2098.5,2098.2,5.81]
[1617768714646,68.8397,2098.5,2096.9,4.88]
[1617768714846,68.8397,2098.5,2098.3,5.76]
[1617768715046,2.0,2099.0,2098.3,5.76]
[1617768715247,2.0,2099.0,2098.1,5.92]
[1617768715248,74.8657,2098.4,2098.1,5.92]
[1617768715446,2.90695,2098.2,2097.9,2.90695]
[1617768715847,74.8657,2098.4,2098.0,5.9208]
[1617768716652,12.0,2099.3,2098.0,35.9208]
[1617768716852,72.4272,2099.1,2098.1,65.0017]
[1617768717051,72.4272,2099.1,2098.1,95.0017]
[1617768717250,72.4272,2099.1,2098.2,5.88]
[1617768717452,72.4272,2099.1,2099.0,2.90695]
[1617768717651,12.0,2099.3,2099.0,5.74955]
[1617768717852,12.0,2099.3,2099.0,11.60955]
[1617768719354,2.90695,2099.1,2099.0,8.7026]
[1617768719553,2.90695,2099.1,2099.0,5.86]
[1617768719954,75.7035,2099.0,2098.7,5.97]
[1617768720153,75.7035,2099.0,2098.2,5.87]
[1617768720353,75.7035,2099.0,2097.8,61.1813]
[1617768720556,75.7035,2099.0,2097.9,5.82]
[1617768720755,75.7035,2099.0,2097.9,35.82]
[1617768721355,75.7035,2099.0,2098.3,2.90695]
[1617768721753,75.7035,2099.0,2098.4,5.95]
[1617768723454,75.7035,2099.0,2097.8,61.1813]
[1617768723455,2.90695,2098.5,2098.0,8.67695]
[1617768723655,2.90695,2098.5,2098.1,2.5]
[1617768723856,2.90695,2098.5,2098.4,5.94]
[1617768724257,2.90695,2098.5,2098.2,5.91]
[1617768724457,2.90695,2098.5,2098.4,5.91]
[1617768724857,2.90695,2098.5,2098.0,2.90695]
[1617768725058,2.90695,2098.5,2098.4,5.97]
[1617768725458,2.90695,2098.5,2098.0,2.90695]
[1617768725658,5.69415,2098.5,2097.1,30.0]
[1617768725858,5.69415,2098.5,2098.4,5.89]
[1617768726059,5.69415,2098.5,2098.3,5.91]
[1617768726259,70.3297,2098.3,2095.1,2.571]
[1617768726659,70.3297,2098.3,2098.2,5.79]
[1617768726859,70.3297,2098.3,2097.4,4.16]
[1617768727065,70.3297,2098.3,2095.1,2.571]
[1617768727265,70.3297,2098.3,2098.2,5.72]
[1617768727463,70.3297,2098.3,2097.7,2.90695]
[1617768727865,70.3297,2098.3,2098.2,5.95]
[1617768728063,70.3297,2098.3,2097.8,5.98]
[1617768728262,70.3297,2098.3,2097.7,2.90695]
[1617768728463,70.3297,2098.3,2097.8,5.96]
[1617768729363,2.90695,2097.9,2097.8,5.96]
[1617768730666,14.0,2099.3,2097.8,8.6152]
[1617768730867,66.8662,2099.2,2098.2,77.8102]
[1617768731269,66.8662,2099.2,2098.3,5.82]
[1617768731468,2.90695,2099.0,2098.6,2.90695]
[1617768731668,2.90695,2099.0,2098.6,5.67965]
[1617768731868,2.90695,2099.0,2098.7,5.89]
[1617768732669,2.90695,2099.0,2098.7,35.89]
[1617768732869,12.0,2099.3,2099.0,61.7746]
[1617768733273,12.0,2099.3,2099.1,5.94]
[1617768733471,12.0,2099.3,2099.2,2.90695]
[1617768734071,12.0,2099.3,2099.2,8.82695]
[1617768735573,12.0,2099.3,2099.2,38.82695]
[1617768738676,12.0,2099.3,2099.2,106.74305]
[1617768739678,12.0,2099.3,2099.2,108.74305]
[1617768741880,11.0769,2099.3,2099.2,108.74305]
[1617768742281,8.7139,2099.3,2099.2,108.74305]
[1617768742481,8.0305,2099.3,2099.2,106.74305]
[1617768742680,5.6651,2099.3,2099.2,106.74305]
[1617768743682,8.57205,2099.3,2099.2,106.74305]
[1617768743881,5.6651,2099.3,2099.2,106.74305]
[1617768745684,5.6651,2099.3,2099.2,108.74305]
[1617768746583,5.6651,2099.3,2099.2,40.82695]
[1617768748385,3.9513,2099.3,2099.2,40.82695]
[1617768749785,64.10375,2100.5,2099.2,40.82695]
[1617768749986,64.10375,2100.5,2100.2,74.9641]
[1617768750188,64.10375,2100.5,2100.3,5.75]
[1617768750386,61.1968,2100.5,2100.3,35.75]
[1617768751688,61.1968,2100.5,2100.4,2.90695]
[1617768752088,7.09305,2100.4,2100.3,30.0]
[1617768752488,7.09305,2100.4,2100.3,35.81]
[1617768753688,7.09305,2100.4,2100.3,38.71695]
[1617768757694,7.09305,2100.4,2100.3,41.44455]
[1617768760497,7.09305,2100.4,2100.3,38.71695]
[1617768760700,7.09305,2100.4,2100.3,96.23705]
[1617768762400,7.09305,2100.4,2100.3,66.23705]
[1617768764602,7.09305,2100.4,2100.3,8.71695]
[1617768764804,71.43825,2100.4,2100.3,8.71695]
[1617768766608,7.09305,2100.4,2100.3,8.71695]
[1617768767610,9.52005,2100.4,2100.3,8.71695]
[1617768767808,9.52005,2100.4,2100.3,5.81]
[1617768769510,9.52005,2100.4,2100.3,6.7704]
[1617768770510,9.52005,2100.4,2100.3,5.81]
[1617768771515,7.09305,2100.4,2100.3,5.81]
[1617768772515,7.09305,2100.4,2100.3,8.136]
[1617768774116,7.09305,2100.4,2100.3,5.81]
[1617768779521,7.09305,2100.4,2099.8,5.93]
[1617768779723,79.2167,2100.2,2099.8,5.93]
[1617768779921,2.90695,2099.9,2099.7,5.94]
[1617768780122,5.67155,2099.9,2099.6,71.743]
[1617768780422,5.67155,2099.9,2099.7,5.89]
[1617768783925,2.90695,2099.9,2099.7,5.89]
[1617768790030,2.90695,2099.9,2099.8,2.90695]
[1617768790430,2.90695,2099.9,2099.8,8.75695]
[1617768790830,2.90695,2099.9,2099.8,10.92385]
[1617768791833,2.90695,2099.9,2099.8,8.0169]
[1617768792031,2.90695,2099.9,2099.8,5.85]
[1617768792431,2.90695,2099.9,2099.7,5.9]
[1617768792631,2.90695,2099.9,2099.8,5.75]
[1617768793032,2.90695,2099.9,2099.7,5.83]
[1617768793235,2.90695,2099.9,2099.6,71.743]
[1617768793236,2.90695,2099.9,2099.8,5.83]
[1617768793531,2.90695,2099.9,2099.7,5.98]
[1617768798039,2.90695,2099.9,2099.7,8.88695]
[1617768801444,2.90695,2099.9,2099.7,5.98]
[1617768809151,2.90695,2099.9,2099.1,5.71]
[1617768809552,2.90695,2099.9,2099.8,5.96]
[1617768809955,2.90695,2099.9,2099.2,5.89]
[1617768810153,2.90695,2099.3,2099.0,2.90695]
[1617768810553,2.90695,2099.3,2099.1,5.84]
[1617768811152,2.90695,2099.3,2099.1,35.84]
[1617768812756,2.90695,2099.3,2099.2,61.9472]
[1617768813154,2.90695,2099.3,2099.2,67.8172]
[1617768827472,4.82165,2099.3,2099.2,5.87]
[1617768827871,4.82165,2099.3,2098.7,2.90695]
[1617768827872,4.82165,2099.3,2098.8,5.96]
[1617768828073,76.885,2098.9,2098.8,5.96]
[1617768828273,76.885,2098.9,2098.7,2.90695]
[1617768828474,2.90695,2098.8,2098.3,70.4908]
[1617768828676,5.59565,2098.8,2098.3,70.4908]
[1617768829075,5.59565,2098.8,2098.4,5.89]
[1617768829877,5.59565,2098.8,2098.3,5.93]
[1617768830075,5.59565,2098.8,2098.5,5.92]
[1617768830475,57.5565,2098.5,2098.3,5.78]
[1617768830677,57.5565,2098.5,2098.1,2.90695]
[1617768830877,57.5565,2098.5,2098.2,5.33]
[1617768831079,57.5565,2098.5,2098.4,5.95]
[1617768831278,57.5565,2098.5,2098.1,2.90695]
[1617768831478,57.5565,2098.5,2098.3,5.89]
[1617768831679,57.5565,2098.5,2098.4,5.71]
[1617768831879,57.5565,2098.5,2098.1,2.90695]
[1617768832081,57.5565,2098.5,2098.3,5.9]
[1617768832279,57.5565,2098.5,2098.4,5.88]
[1617768832678,60.46345,2098.5,2098.2,5.88]
[1617768832880,60.46345,2098.5,2098.4,5.74]
[1617768833283,60.46345,2098.5,2098.1,2.90695]
[1617768833481,60.46345,2098.5,2098.4,5.8]
[1617768833881,60.46345,2098.5,2098.1,2.90695]
[1617768834083,60.46345,2098.5,2098.4,6.0]
[1617768834482,2.90695,2098.5,2098.1,2.90695]
[1617768834682,2.90695,2098.5,2098.4,5.9]
[1617768835082,2.90695,2098.5,2098.3,66.0671]
[1617768835283,2.90695,2098.5,2098.4,5.9]
[1617768836885,2.90695,2098.5,2097.6,2.90695]
[1617768837085,75.4155,2098.4,2097.7,5.71]
[1617768837288,75.4155,2098.4,2097.3,30.0]
[1617768837686,75.4155,2098.4,2097.7,5.97]
[1617768837887,2.0,2098.3,2097.4,5.8]
[1617768838088,2.0,2098.3,2097.3,30.0]
[1617768838287,2.0,2098.3,2097.4,5.91]
[1617768838588,2.90695,2097.5,2097.1,8.69695]
[1617768838987,75.5675,2097.2,2097.1,2.90695]
[1617768839387,75.5675,2097.2,2097.1,5.91]
[1617768839788,78.0397,2097.2,2096.8,5.96]
[1617768839990,78.0397,2097.2,2095.8,5.03567084]
[1617768839991,2.4722,2097.2,2097.1,5.91]
[1617768840388,2.4722,2097.2,2096.8,6.0]
[1617768840588,2.90695,2096.9,2096.2,0.21]
[1617768840787,2.90695,2096.9,2096.1,2.90695]
[1617768840988,2.90695,2096.9,2096.7,5.76]
[1617768841189,2.90695,2096.9,2096.2,5.74]
[1617768841590,2.90695,2096.9,2096.4,5.93]
[1617768841988,2.90695,2096.9,2096.2,5.74]
[1617768842190,2.90695,2096.9,2096.1,2.90695]
[1617768842191,2.90695,2096.9,2096.5,5.87]
[1617768842389,2.90695,2096.9,2096.2,5.82]
[1617768842590,2.90695,2096.3,2096.2,5.82]
[1617768842790,58.6102,2096.2,2096.1,2.90695]
[1617768842991,61.1264,2096.2,2096.1,2.90695]
[1617768843190,61.1264,2096.2,2096.1,8.76695]
[1617768843590,2.5162,2096.2,2096.1,8.76695]
[1617768845291,2.90695,2096.3,2096.1,8.76695]
[1617768847393,71.75175,2096.3,2096.1,8.76695]
[1617768850396,2.90695,2096.3,2096.1,8.76695]
[1617768851399,2.90695,2096.3,2096.1,88.65235]
[1617768852997,2.90695,2096.3,2096.1,118.65235]
[1617768853198,2.90695,2096.3,2096.1,38.76695]
[1617768853397,30.0,2098.8,2096.1,38.76695]
[1617768853599,2.0,2098.2,2096.1,38.76695]
[1617768854003,2.0,2098.2,2096.1,40.76695]
[1617768854799,2.0,2098.2,2097.0,5.01955]
[1617768855000,72.5248,2097.9,2097.2,60.0655]
[1617768855199,72.5248,2097.9,2097.3,5.74]
[1617768855801,2.0,2098.2,2097.3,5.74]
[1617768856000,70.9918,2097.5,2097.3,5.74]
[1617768856201,70.9918,2097.5,2097.1,5.82]
[1617768856400,70.9918,2097.5,2097.4,5.86]
[1617768856802,73.89875,2097.5,2096.4,5.96]
[1617768857000,76.38265,2097.5,2096.3,32.90695]
[1617768857201,76.38265,2097.5,2097.4,5.88]
[1617768857402,76.38265,2097.5,2096.4,5.83]
[1617768857602,2.0,2097.4,2096.4,5.83]
[1617768857802,2.0,2097.4,2096.3,32.90695]
[1617768858003,2.0,2097.4,2096.5,5.9]
[1617768858202,76.38265,2097.5,2096.5,5.9]
[1617768858403,76.38265,2097.5,2096.4,5.87]
[1617768858603,76.38265,2097.5,2096.6,5.83]
[1617768858803,2.90695,2096.7,2096.6,5.83]
[1617768859004,2.90695,2096.7,2096.4,5.88]
[1617768859206,2.90695,2096.7,2096.6,5.87]
[1617768859605,2.90695,2096.7,2096.4,5.72]
[1617768859806,2.90695,2096.7,2096.6,5.89]
[1617768860108,2.90695,2096.7,2096.4,5.79]
[1617768860408,2.90695,2096.7,2096.6,6.0]
[1617768860809,2.90695,2096.7,2096.4,5.94]
[1617768861009,2.90695,2096.7,2096.6,5.92]
[1617768861310,2.90695,2096.7,2096.4,5.88]
[1617768861510,5.42045,2096.7,2096.4,5.88]
[1617768861713,5.42045,2096.7,2096.6,5.92]
[1617768861910,5.42045,2096.7,2096.4,5.73]
[1617768862210,5.42045,2096.7,2096.6,5.89]
[1617768862610,5.42045,2096.7,2096.4,5.91]
[1617768862811,5.42045,2096.7,2096.6,5.89]
[1617768863110,5.42045,2096.7,2096.4,5.94]
[1617768863711,2.90695,2096.7,2096.4,5.94]
[1617768864812,2.90695,2096.7,2096.4,35.94]
[1617768865011,2.90695,2096.7,2096.6,2.90695]
[1617768865411,2.90695,2096.7,2096.6,8.75695]
[1617768870816,5.14515,2096.7,2096.6,8.75695]
[1617768872218,5.14515,2096.7,2096.6,5.85]
[1617768872618,5.14515,2096.7,2096.3,66.3862]
[1617768872819,5.14515,2096.7,2096.4,5.76]
[1617768873019,5.14515,2096.7,2096.6,5.89]
[1617768873219,5.14515,2096.7,2096.3,66.3862]
[1617768873421,5.14515,2096.7,2096.5,5.99]
[1617768873620,5.14515,2096.7,2096.6,5.89]
[1617768873819,5.14515,2096.7,2096.4,5.8]
[1617768874221,5.14515,2096.7,2096.6,5.93]
[1617768874421,5.14515,2096.7,2096.4,5.93]
[1617768874621,2.90695,2096.7,2096.4,5.93]
[1617768875819,2.90695,2096.7,2096.1,32.90695]
[1617768875820,2.90695,2096.7,2096.2,5.77]
[1617768876020,2.90695,2096.7,2096.3,30.0]
[1617768876219,2.90695,2096.7,2096.5,5.88]
[1617768876420,2.90695,2096.7,2096.3,33.0123]
[1617768876421,2.90695,2096.7,2096.4,5.93]
[1617768876921,2.90695,2096.7,2096.6,5.87]
[1617768877125,2.90695,2096.7,2096.6,2.90695]
[1617768877321,2.90695,2096.7,2096.6,8.76695]
[1617768877721,2.90695,2096.7,2096.6,5.86]
[1617768878123,2.90695,2096.7,2096.4,5.76]
[1617768878321,2.90695,2096.7,2096.6,5.72]
[1617768878723,2.90695,2096.7,2096.5,66.353]
[1617768879122,2.90695,2096.7,2096.6,5.82]
[1617768879323,2.90695,2096.7,2096.5,66.353]
[1617768879725,2.90695,2096.7,2096.6,5.87]
[1617768884631,2.90695,2096.7,2096.3,5.75]
[1617768884831,5.01955,2096.7,2096.3,5.75]
[1617768885034,5.01955,2096.7,2096.6,5.73]
[1617768885233,7.01955,2096.7,2096.3,5.76]
[1617768885632,7.01955,2096.7,2096.6,5.74]
[1617768885832,62.02,2096.6,2096.4,5.74]
[1617768886231,2.0,2096.5,2095.3,62.9297]
[1617768886431,62.02,2096.6,2095.5,5.88]
[1617768886831,62.02,2096.6,2095.3,62.9297]
[1617768887031,62.02,2096.6,2095.6,5.96]
[1617768887232,2.0,2096.5,2095.7,2.90695]
[1617768887634,2.0,2096.5,2095.8,5.79]
[1617768889136,2.90695,2095.9,2095.8,5.79]
[1617768889335,72.14005,2095.9,2095.8,5.79]
[1617768894439,72.14005,2095.9,2095.6,5.84]
[1617768894839,72.14005,2095.9,2095.8,5.72]
[1617768895041,2.90695,2095.9,2095.8,5.72]
[1617768895241,57.6332,2095.8,2095.6,5.72]
[1617768895439,57.6332,2095.8,2095.4,2.81]
[1617768895740,57.6332,2095.8,2095.7,5.8]
[1617768896141,57.6332,2095.8,2095.4,8.5676]
[1617768896341,57.6332,2095.8,2095.7,5.92]
[1617768896742,57.6332,2095.8,2095.5,5.76]
[1617768896941,57.6332,2095.8,2095.7,5.86]
[1617768897342,57.6332,2095.8,2095.7,2.90695]
[1617768897542,57.6332,2095.8,2095.7,8.68695]
[1617768897942,57.6332,2095.8,2095.7,5.78]
[1617768898343,57.6332,2095.8,2095.3,71.6313]
[1617768898543,57.6332,2095.8,2095.4,5.95]
[1617768898743,57.6332,2095.8,2095.7,5.95]
[1617768899143,57.6332,2095.8,2095.4,8.2065]
[1617768899344,57.6332,2095.8,2095.7,5.83]
[1617768899744,57.6332,2095.8,2095.5,5.85]
[1617768899944,57.6332,2095.8,2095.7,5.98]
[1617768900145,2.90695,2095.9,2095.7,5.98]
[1617768900346,2.90695,2095.9,2095.8,54.0571]
[1617768900544,2.90695,2095.9,2095.8,59.7771]
[1617768901347,2.90695,2095.9,2095.8,62.68405]
[1617768903147,2.90695,2095.9,2095.8,8.62695]
[1617768903346,67.28335,2095.9,2095.8,5.72]
[1617768903748,67.28335,2095.9,2095.6,5.99]
[1617768903950,69.22215,2095.9,2095.6,5.99]
[1617768904149,69.22215,2095.9,2095.8,5.97]
[1617768904449,69.22215,2095.9,2095.7,5.73]
[1617768904651,4.84575,2095.9,2095.8,5.92]
[1617768905049,4.84575,2095.9,2095.7,5.73]
[1617768905249,4.84575,2095.9,2095.8,5.87]
[1617768905649,64.3176,2095.8,2095.5,2.90695]
[1617768905849,64.3176,2095.8,2095.6,5.92]
[1617768906049,64.3176,2095.8,2095.5,2.90695]
[1617768906451,64.3176,2095.8,2095.6,5.85]
[1617768907851,64.3176,2095.8,2095.0,5.77]
[1617768908252,64.3176,2095.8,2095.7,5.96]
[1617768908450,64.3176,2095.8,2095.5,0.9589]
[1617768908652,2.0,2095.7,2095.1,5.75]
[1617768908852,2.0,2095.7,2095.6,3.17]
[1617768909252,2.0,2095.7,2094.9,5.98]
[1617768909452,76.4739,2095.0,2094.7,2.90695]
[1617768909651,78.7999,2095.0,2094.8,0.81]
[1617768910052,2.326,2095.0,2094.7,2.90695]
[1617768910251,2.326,2095.0,2094.8,35.88]
[1617768910451,2.326,2095.0,2094.8,38.5648]
[1617768910656,76.4228,2095.7,2095.2,56.2292]
[1617768911256,76.4228,2095.7,2095.3,5.98]
[1617768912162,2.0,2096.0,2095.3,5.98]
[1617768912556,65.2376,2095.5,2095.3,5.98]
[1617768912756,65.2376,2095.5,2094.9,5.94]
[1617768912957,65.2376,2095.5,2095.4,5.94]
[1617768913159,65.2376,2095.5,2094.9,5.84]
[1617768913356,2.90695,2095.0,2094.9,5.84]
[1617768913557,2.90695,2095.0,2094.8,105.3938]
[1617768913957,2.90695,2095.0,2094.9,6.0]
[1617768917161,2.90695,2095.0,2094.8,5.83]
[1617768917360,70.6636,2094.9,2094.8,5.83]
[1617768917560,70.6636,2094.9,2094.7,2.90695]
[1617768917762,5.70395,2095.0,2094.8,5.9]
[1617768918561,5.70395,2095.0,2094.7,5.89]
[1617768921165,6.64435,2095.0,2094.7,5.89]
[1617768921364,5.70395,2095.0,2094.7,5.89]
[1617768922163,5.70395,2095.0,2094.7,6.847]
[1617768922565,5.70395,2095.0,2094.7,5.89]
[1617768923367,68.2569,2094.5,2094.3,6.0]
[1617768923567,70.5622,2094.5,2094.2,2.90695]
[1617768923966,70.5622,2094.5,2094.4,5.96]
[1617768924166,2.3053,2094.5,2094.3,5.9]
[1617768924367,2.3053,2094.5,2093.3,30.0]
[1617768924566,2.3053,2094.5,2094.4,6.0]
[1617768924768,60.0499,2093.7,2093.6,5.92]
[1617768924968,62.3539,2093.7,2093.3,30.0]
[1617768925367,62.3539,2093.7,2093.6,2.90695]
[1617768925568,62.3539,2093.7,2093.4,6.0]
[1617768925767,62.3539,2093.7,2093.6,5.78]
[1617768926169,62.3539,2093.7,2093.5,6.01]
[1617768926368,62.3539,2093.7,2093.6,5.81]
[1617768926567,62.3539,2093.7,2093.0,3.44]
[1617768926769,62.3539,2093.7,2092.9,1.1]
[1617768926968,62.3539,2093.7,2093.6,5.73]
[1617768927168,62.3539,2093.7,2093.0,5.9]
[1617768927469,62.3539,2093.7,2093.3,8.85695]
[1617768927669,62.3539,2093.7,2093.6,5.8]
[1617768927868,62.3539,2093.7,2093.3,2.90695]
[1617768928069,62.3539,2093.7,2093.4,3.76]
[1617768928271,62.3539,2093.7,2093.6,5.76]
[1617768928470,62.3539,2093.7,2093.3,2.90695]
[1617768928671,62.3539,2093.7,2093.6,5.93]
[1617768929071,62.3539,2093.7,2093.4,5.88]
[1617768929272,62.3539,2093.7,2093.3,2.90695]
[1617768929470,62.3539,2093.7,2093.6,5.95]
[1617768929672,62.3539,2093.7,2093.4,5.9]
[1617768929873,62.3539,2093.7,2093.6,5.77]
[1617768930274,62.3539,2093.7,2093.4,5.85]
[1617768930675,62.3539,2093.7,2093.6,5.82]
[1617768930875,62.3539,2093.7,2093.4,5.78]
[1617768931076,62.3539,2093.7,2093.6,5.92]
[1617768931476,65.26085,2093.7,2093.4,5.76]
[1617768931677,65.26085,2093.7,2093.6,5.74]
[1617768932077,2.90695,2093.7,2093.4,5.95]
[1617768932280,2.90695,2093.7,2093.6,5.85]
[1617768932684,2.90695,2093.7,2093.4,63.0981]
[1617768932878,2.90695,2093.7,2093.5,5.97]
[1617768933077,2.88595,2093.7,2093.6,5.99]
[1617768933277,2.88595,2093.7,2093.3,2.90695]
[1617768933477,2.1318,2094.0,2093.4,5.8]
[1617768933678,2.0,2093.9,2093.6,5.95]
[1617768933878,2.0,2093.9,2093.3,2.90695]
[1617768934077,2.0,2093.9,2093.4,5.8]
[1617768935484,2.90695,2093.5,2093.4,5.8]
[1617768937285,5.20435,2093.5,2093.1,5.79]
[1617768937485,2.90695,2093.2,2093.1,5.79]
[1617768937685,2.90695,2093.2,2093.0,0.9697]
[1617768938085,2.90695,2093.2,2093.1,5.74]
[1617768938687,2.90695,2093.2,2092.7,5.74]
[1617768938885,72.1174,2093.1,2092.7,5.74]
[1617768939087,72.1174,2093.1,2092.6,2.90695]
[1617768939286,72.1174,2093.1,2092.8,5.94]
[1617768939486,2.90695,2092.9,2092.8,5.94]
[1617768939687,75.9854,2092.8,2092.7,5.73]
[1617768939887,75.9854,2092.8,2092.6,2.90695]